bitfinex-derivatives/quotes_BTCF0:USTF0_20210109
["timestamp","ask_amount","ask_price","bid_price","bid_amount"]
[1610157483128,0.13632608,39995.0,39992.0,0.13632608]
[1610157483527,0.11626,39996.0,39992.0,0.13632608]
[1610157487034,0.23298608,40004.0,39992.0,0.13632608]
[1610157487332,0.13632608,39997.0,39992.0,0.13632608]
[1610157489237,0.13632608,39997.0,39996.0,0.54152608]
[1610157492843,0.09666,40004.0,39996.0,0.54152608]
[1610157493244,0.13632608,40001.0,39996.0,0.13632608]
[1610157493543,0.25076608,40001.0,39997.0,3.9736]
[1610157494446,0.11444,40001.0,39974.0,0.11964]
[1610157494650,0.11444,40001.0,39987.0,4.0948]
[1610157495348,0.13632608,39988.0,39987.0,4.0948]
[1610157495552,0.24959608,39988.0,39987.0,4.0948]
[1610157496652,0.24959608,39988.0,39986.0,0.13632608]
[1610157497453,0.11327,39988.0,39986.0,0.13632608]
[1610157499054,0.11327,39988.0,39987.0,0.4308]
[1610157500356,0.11327,39988.0,39987.0,0.43100519]
[1610157500555,0.13632608,39999.0,39987.0,0.43100519]
[1610157500955,0.13632608,39999.0,39988.0,0.00020519]
[1610157501256,0.11444,40001.0,39992.0,0.13632608]
[1610157501756,0.01522222,40020.0,39993.0,0.00020519]
[1610157501960,0.01522222,40020.0,39999.0,3.9669]
[1610157502260,0.00030581,40019.0,40000.0,0.00020517]
[1610157502458,0.12371581,40019.0,40000.0,0.00020517]
[1610157502959,0.00030581,40018.0,40000.0,0.00020517]
[1610157503259,0.00030581,40018.0,40011.0,0.13632608]
[1610157503459,0.00030581,40018.0,40014.0,0.4294]
[1610157503958,0.12341,40019.0,40014.0,0.4294]
[1610157504458,0.12341,40019.0,40011.0,0.13632608]
[1610157504658,0.12341,40019.0,40014.0,3.1702]
[1610157505257,0.12341,40019.0,40018.0,0.13632608]
[1610157505964,0.12341,40019.0,40018.0,0.13653118]
[1610157507461,0.13632608,40020.0,40018.0,0.13653118]
[1610157507759,0.13632608,40020.0,40018.0,0.0002051]
[1610157507959,0.13632608,40020.0,40019.0,0.0002051]
[1610157508561,0.13632608,40020.0,40006.0,3.8325]
[1610157508863,0.13632608,40020.0,40019.0,0.0002051]
[1610157509062,0.13632608,40020.0,40007.0,0.0002051]
[1610157509363,0.2911,40027.0,40019.0,0.0002051]
[1610157509762,0.2911,40027.0,40012.0,0.0002051]
[1610157509965,0.2911,40027.0,40020.0,0.0002051]
[1610157510163,0.2911,40027.0,40016.0,3.447]
[1610157510363,0.2911,40027.0,40021.0,0.00020508]
[1610157510765,0.2911,40027.0,40017.0,0.00020508]
[1610157510965,0.2911,40027.0,40022.0,0.00020508]
[1610157511265,0.2911,40027.0,40023.0,0.13632608]
[1610157511566,0.09548,40028.0,40023.0,0.13653116]
[1610157511765,0.09548,40028.0,40024.0,0.00020508]
[1610157511964,0.10878,40037.0,40023.0,0.13632608]
[1610157512166,0.1240163,40037.0,40023.0,0.13632608]
[1610157512366,0.1240163,40037.0,40024.0,0.00020507]
[1610157512570,0.00030568,40036.0,40024.0,0.00020507]
[1610157513268,0.13632608,40025.0,40024.0,0.00020507]
[1610157513668,0.22468608,40025.0,40024.0,0.00020507]
[1610157514169,0.22468608,40025.0,40017.0,0.00020507]
[1610157514371,0.22468608,40025.0,40024.0,0.00020507]
[1610157514572,0.22468608,40025.0,40017.0,0.00020507]
[1610157514873,0.22468608,40025.0,40016.0,3.447]
[1610157515273,0.13632608,40019.0,40018.0,0.00020507]
[1610157515474,0.13632608,40019.0,40017.0,0.00020507]
[1610157515674,0.13632608,40019.0,40018.0,0.00020507]
[1610157516275,0.13632608,40019.0,40017.0,0.00020507]
[1610157516476,0.13632608,40019.0,40018.0,0.00020507]
[1610157516676,0.13632608,40019.0,40017.0,0.00020507]
[1610157517076,0.13632608,40019.0,40018.0,0.00020507]
[1610157517580,0.13632608,40019.0,40017.0,0.00020507]
[1610157517779,0.13632608,40019.0,40018.0,0.00020507]
[1610157518180,0.13632608,40019.0,40017.0,0.00020507]
[1610157518480,0.13632608,40019.0,40018.0,0.00020507]
[1610157518880,0.13632608,40019.0,40017.0,0.00020507]
[1610157519088,0.13632608,40019.0,40016.0,3.58332608]
[1610157519384,0.13632608,40019.0,40018.0,0.00020507]
[1610157519584,0.13632608,40019.0,40017.0,0.00020507]
[1610157519884,0.13632608,40019.0,40018.0,0.00020507]
[1610157520186,0.13632608,40019.0,40017.0,0.00020507]
[1610157520484,0.13632608,40019.0,40018.0,0.00020507]
[1610157520884,0.13632608,40019.0,40017.0,0.00020507]
[1610157521384,0.13632608,40019.0,40018.0,0.00020507]
[1610157521785,0.13632608,40019.0,40017.0,0.00020507]
[1610157522084,0.13632608,40019.0,40016.0,3.58332608]
[1610157522085,0.13632608,40019.0,40018.0,0.00020505]
[1610157522485,0.13632608,40019.0,40016.0,3.58332608]
[1610157522486,0.13632608,40019.0,40017.0,0.00020487]
[1610157523387,0.13632608,40019.0,40018.0,0.00020487]
[1610157523787,0.13632608,40019.0,40017.0,0.00020487]
[1610157524189,0.13632608,40019.0,40018.0,0.00020487]
[1610157524589,0.13632608,40019.0,40017.0,0.00020487]
[1610157524891,0.08836,40025.0,40018.0,0.00020487]
[1610157525191,0.01531622,40032.0,40018.0,0.00020487]
[1610157525489,0.01531622,40032.0,40029.0,0.13632608]
[1610157525789,0.01531973,40033.0,40029.0,0.13632608]
[1610157525990,0.4705026,40033.0,40029.0,0.13632608]
[1610157526589,0.01531973,40033.0,40029.0,0.13632608]
[1610157527390,0.13632608,40030.0,40029.0,0.13632608]
[1610157528792,0.13632608,40030.0,40029.0,0.13653096]
[1610157529798,0.13632608,40030.0,40029.0,0.00020488]
[1610157530398,0.13632608,40030.0,40022.0,0.00020488]
[1610157530601,0.13632608,40030.0,40029.0,0.00020488]
[1610157531100,0.13632608,40030.0,40023.0,0.00020488]
[1610157531300,0.13632608,40030.0,40029.0,0.00020488]
[1610157531500,0.13632608,40030.0,40025.0,0.13632608]
[1610157531902,0.13632608,40030.0,40021.0,4.0653]
[1610157532104,0.13632608,40030.0,40026.0,0.00020488]
[1610157532302,0.13632608,40030.0,40022.0,0.00020488]
[1610157532502,0.13632608,40030.0,40027.0,0.00020488]
[1610157532702,0.13632608,40030.0,40027.0,0.55420488]
[1610157532904,0.13632608,40030.0,40027.0,0.554]
[1610157533203,0.13632608,40030.0,40028.0,0.00020488]
[1610157535004,0.15165127,40030.0,40028.0,0.00020488]
[1610157535407,0.15165127,40030.0,40029.0,0.13632608]
[1610157535807,0.60697526,40030.0,40029.0,0.13632608]
[1610157536007,0.60697526,40030.0,40029.0,0.13653094]
[1610157536406,0.15165127,40030.0,40029.0,0.13653094]
[1610157536806,0.13632608,40030.0,40029.0,0.13653094]
[1610157537509,0.57931214,40037.0,40029.0,3.57173094]
[1610157537709,0.0153166,40033.0,40030.0,0.00020482]
[1610157538108,0.10878,40037.0,40030.0,0.00020482]
[1610157538310,0.47041017,40048.0,40030.0,0.00020482]
[1610157538610,0.01530986,40052.0,40030.0,0.00784384]
[1610157539011,0.47015434,40055.0,40046.0,3.8815]
[1610157539410,0.1569,40058.0,40054.0,0.13632608]
[1610157539610,0.1569,40058.0,40054.0,0.70232608]
[1610157539812,0.01529666,40061.0,40054.0,0.70232608]
[1610157540110,0.01529643,40063.0,40054.0,0.70232608]
[1610157540613,0.01529603,40065.0,40054.0,0.70232608]
[1610157541510,0.01529603,40065.0,40054.0,0.566]
[1610157541511,0.13632608,40055.0,40054.0,0.566]
[1610157541716,0.21982608,40055.0,40054.0,0.566]
[1610157543013,0.21982608,40055.0,40054.0,0.15048049]
[1610157544313,0.21982608,40055.0,40054.0,0.15068523]
[1610157545515,0.21982608,40055.0,40047.0,0.13632608]
[1610157546515,0.0835,40055.0,40047.0,0.13632608]
[1610157546816,0.07739,40055.0,40048.0,0.00020473]
[1610157547616,0.07739,40055.0,40054.0,0.13632608]
[1610157547815,0.07739,40055.0,40054.0,0.72662608]
[1610157548114,0.07739,40055.0,40054.0,0.72683079]
[1610157548816,3.005,40068.0,40054.0,0.72683079]
[1610157549216,0.13632608,40069.0,40060.0,3.0588]
[1610157549417,0.13632608,40069.0,40068.0,0.13632608]
[1610157551122,4.0516,40093.0,40071.0,0.53]
[1610157551319,1.5,40146.0,40068.0,0.13632608]
[1610157551320,0.4658922,40096.0,40068.0,0.13632608]
[1610157551518,0.4658922,40096.0,40085.0,0.13632608]
[1610157551719,0.46588901,40098.0,40085.0,0.13632608]
[1610157552319,0.46588299,40097.0,40085.0,0.13632608]
[1610157552519,0.2709,40099.0,40085.0,0.13632608]
[1610157553422,0.13632608,40086.0,40085.0,0.13632608]
[1610157553624,0.21978608,40086.0,40085.0,0.13632608]
[1610157553823,0.21978608,40086.0,40085.0,0.5533]
[1610157559534,0.21978608,40086.0,40085.0,0.68962608]
[1610157561835,0.08346,40086.0,40085.0,0.68962608]
[1610157562035,0.2709,40099.0,40085.0,0.68962608]
[1610157562238,0.2709,40099.0,40085.0,0.13632608]
[1610157562438,0.2709,40099.0,40089.0,3.054]
[1610157563539,0.2709,40099.0,40095.0,0.13632608]
[1610157563941,0.01509934,40118.0,40102.0,3.2577]
[1610157564340,0.00030519,40117.0,40102.0,3.2577]
[1610157564540,0.08680519,40117.0,40102.0,3.2577]
[1610157564939,0.00030519,40116.0,40102.0,3.2577]
[1610157565439,0.00030519,40116.0,40107.0,0.13632608]
[1610157565738,0.00030519,40116.0,40107.0,0.69832608]
[1610157566240,0.00030519,40116.0,40107.0,0.13632608]
[1610157567045,0.0865,40117.0,40107.0,0.13632608]
[1610157567240,0.0865,40117.0,40116.0,2.8226]
[1610157567542,0.0865,40117.0,40116.0,2.95892608]
[1610157567739,0.0865,40117.0,40096.0,5.998]
[1610157567740,0.0865,40117.0,40109.0,3.0843]
[1610157569343,0.00030503,40116.0,40109.0,3.0843]
[1610157569542,0.13632608,40110.0,40109.0,3.0843]
[1610157570242,0.0865,40117.0,40109.0,3.0843]
[1610157570443,0.1569,40140.0,40104.0,0.13632608]
[1610157570745,0.03080527,40139.0,40116.0,4.0136]
[1610157571044,0.12135527,40139.0,40125.0,3.9063]
[1610157571748,0.13632608,40126.0,40125.0,3.9063]
[1610157572045,0.13663108,40126.0,40125.0,3.9063]
[1610157572344,0.24228108,40126.0,40123.0,0.13632608]
[1610157572845,0.24197608,40126.0,40123.0,0.13632608]
[1610157573045,0.00030499,40125.0,40083.0,0.08215]
[1610157573247,0.00030499,40125.0,40109.0,3.6392]
[1610157573447,0.03080586,40125.0,40109.0,3.6392]
[1610157573646,0.13632608,40110.0,40109.0,3.6392]
[1610157573946,0.24222608,40110.0,40109.0,3.6392]
[1610157576349,0.24222608,40110.0,40083.0,0.1076]
[1610157576649,0.24222608,40110.0,40083.0,3.9826]
[1610157577551,0.1059,40110.0,40092.0,0.13632608]
[1610157578050,0.6404,40110.0,40083.0,3.9826]
[1610157578649,0.03081795,40109.0,40083.0,3.9826]
[1610157579650,0.03081795,40109.0,40083.0,4.11892608]
[1610157580052,0.6404,40110.0,40083.0,4.11892608]
[1610157580553,0.03081643,40109.0,40083.0,0.24392608]
[1610157580852,0.60507226,40110.0,40097.0,3.9367]
[1610157581653,0.60507226,40110.0,40109.0,0.13632608]
[1610157583554,0.74139834,40110.0,40109.0,0.13632608]
[1610157583756,0.60507226,40110.0,40109.0,0.13632608]
[1610157584454,0.60507226,40110.0,40109.0,0.61852608]
[1610157586055,0.60507226,40110.0,40109.0,0.4822]
[1610157595168,0.60507226,40110.0,40107.0,0.13632608]
[1610157596374,0.60507226,40110.0,40109.0,3.5371]
[1610157597774,0.60507226,40110.0,40109.0,3.53730543]
[1610157599675,0.30061296,40110.0,40109.0,3.53730543]
[1610157599976,0.30061296,40110.0,40109.0,3.5371]
[1610157602278,0.12711296,40110.0,40109.0,3.5371]
[1610157602679,0.12711296,40110.0,40109.0,3.53730535]
[1610157603578,0.09055,40139.0,40109.0,3.53730535]
[1610157603777,0.13632608,40157.0,40138.0,0.13632608]
[1610157604580,0.13632608,40157.0,40138.0,0.64952608]
[1610157605481,0.13632608,40157.0,40138.0,0.13632608]
[1610157605782,0.1569,40177.0,40120.0,0.10881]
[1610157605982,2.8682,40150.0,40120.0,0.10881]
[1610157606183,2.8682,40150.0,40102.0,0.12109]
[1610157606184,0.1569,40149.0,40102.0,0.12109]
[1610157606382,3.2923,40139.0,40101.0,3.1981]
[1610157606582,3.41279,40139.0,40103.0,0.00020532]
[1610157606782,3.41279,40139.0,40103.0,0.10546]
[1610157607283,3.41279,40139.0,40104.0,0.00020534]
[1610157607482,0.12049,40139.0,40104.0,0.00020534]
[1610157607687,0.12049,40139.0,40138.0,0.13632608]
[1610157609982,0.12049,40139.0,40114.0,0.10142]
[1610157610185,0.12049,40139.0,40138.0,3.5363]
[1610157610683,0.12049,40139.0,40138.0,0.13632608]
[1610157611683,0.12642,40150.0,40138.0,0.13632608]
[1610157611883,0.13632608,40170.0,40138.0,0.13632608]
[1610157612384,0.00030465,40169.0,40138.0,0.13632608]
[1610157612584,0.08187465,40169.0,40156.0,0.13632608]
[1610157612986,0.08157,40169.0,40156.0,0.13632608]
[1610157613186,0.00030465,40168.0,40156.0,0.13632608]
[1610157613387,0.00030465,40168.0,40131.0,2.8198]
[1610157614587,0.00030465,40168.0,40144.0,0.13632608]
[1610157615487,0.00030465,40168.0,40131.0,2.8198]
[1610157616686,0.00030465,40168.0,40148.0,0.13632608]
[1610157618491,0.08157,40169.0,40148.0,0.13632608]
[1610157618688,0.1569,40171.0,40161.0,0.13632608]
[1610157619186,0.00030464,40170.0,40161.0,0.13632608]
[1610157619686,0.09493464,40170.0,40161.0,0.13632608]
[1610157619987,0.00030464,40169.0,40161.0,0.13632608]
[1610157620488,0.09463,40170.0,40161.0,0.13632608]
[1610157620787,0.13632608,40162.0,40161.0,0.13632608]
[1610157626792,0.13632608,40162.0,40161.0,3.21092608]
[1610157627291,0.09463,40170.0,40161.0,3.21092608]
[1610157627490,0.1569,40171.0,40161.0,3.21092608]
[1610157627692,0.3195,40186.0,40161.0,3.21092608]
[1610157627994,0.1569,40187.0,40161.0,3.21092608]
[1610157628693,0.1569,40187.0,40176.0,0.13632608]
[1610157630696,0.13632608,40177.0,40176.0,0.13632608]
[1610157630896,0.22077608,40177.0,40176.0,0.13632608]
[1610157631898,0.22077608,40177.0,40123.0,0.0964]
[1610157632097,0.22077608,40177.0,40114.0,0.10142]
[1610157632299,0.08445,40177.0,40153.0,3.7601]
[1610157632699,0.08445,40177.0,40176.0,0.13632608]
[1610157636003,0.13632608,40179.0,40176.0,0.13632608]
[1610157636904,0.1569,40187.0,40176.0,0.13632608]
[1610157637411,0.0151107,40199.0,40184.0,3.326]
[1610157637709,0.2862,40197.0,40184.0,3.326]
[1610157637907,0.03075093,40196.0,40184.0,3.326]
[1610157638308,0.00030446,40196.0,40184.0,3.326]
[1610157638507,0.38753,40197.0,40184.0,3.326]
[1610157638709,0.38753,40197.0,40193.0,0.13632608]
[1610157639811,0.38753,40197.0,40196.0,3.6016]
[1610157640110,0.10133,40197.0,40196.0,3.6016]
[1610157640909,0.10133,40197.0,40196.0,3.43656634]
[1610157642913,0.1569,40205.0,40196.0,3.43656634]
[1610157643316,0.2729,40220.0,40196.0,3.43656634]
[1610157643717,0.00030435,40219.0,40196.0,3.43656634]
[1610157643913,0.11456435,40219.0,40196.0,3.43656634]
[1610157644114,0.11456435,40219.0,40193.0,0.13632608]
[1610157644313,0.00030435,40218.0,40193.0,0.13632608]
[1610157644513,0.00030435,40218.0,40181.0,2.8947]
[1610157644914,0.00030435,40218.0,40184.0,0.13632608]
[1610157645314,0.01510054,40217.0,40184.0,0.13632608]
[1610157645916,0.00030445,40216.0,40184.0,0.13632608]
[1610157646117,0.01510268,40213.0,40184.0,0.13632608]
[1610157646517,0.46385032,40214.0,40184.0,0.13632608]
[1610157646716,0.00030445,40212.0,40181.0,2.8947]
[1610157646918,0.13632608,40183.0,40181.0,2.8947]
[1610157647117,0.22346608,40183.0,40178.0,0.13632608]
[1610157652623,0.22346608,40183.0,40166.0,3.9717]
[1610157652827,0.13632608,40167.0,40163.0,0.13632608]
[1610157653125,0.23093608,40167.0,40163.0,0.13632608]
[1610157653328,0.23093608,40167.0,40164.0,0.00020991]
[1610157658031,0.23093608,40167.0,40165.0,0.00020993]
[1610157658229,0.23093608,40167.0,40163.0,0.13632608]
[1610157658230,0.23093608,40167.0,40164.0,0.00020993]
[1610157658430,0.23093608,40167.0,40166.0,0.00020993]
[1610157658830,0.23093608,40167.0,40165.0,0.00020993]
[1610157659031,0.23093608,40167.0,40164.0,0.00020993]
[1610157659231,0.23093608,40167.0,40166.0,0.00020993]
[1610157659631,0.23093608,40167.0,40165.0,0.00020993]
[1610157659831,0.23093608,40167.0,40164.0,0.00020993]
[1610157660134,0.23093608,40167.0,40166.0,0.00020993]
[1610157660333,0.23093608,40167.0,40165.0,0.00020993]
[1610157660634,0.23093608,40167.0,40164.0,0.00020993]
[1610157660831,0.23093608,40167.0,40166.0,0.00020993]
[1610157661032,0.09461,40167.0,40166.0,0.00020993]
[1610157661232,0.2801,40182.0,40165.0,0.00020993]
[1610157661432,0.2801,40182.0,40166.0,0.00020993]
[1610157662032,0.2801,40182.0,40164.0,0.00020993]
[1610157662233,0.2801,40182.0,40167.0,0.00020993]
[1610157662532,0.2801,40182.0,40165.0,0.00020993]
[1610157662733,0.2801,40182.0,40168.0,0.00020993]
[1610157663034,0.2801,40182.0,40173.0,0.13632608]
[1610157663533,0.2801,40182.0,40174.0,0.00020993]
[1610157664937,0.13632608,40160.0,40159.0,0.00020993]
[1610157665139,0.22387608,40160.0,40152.0,0.13632608]
[1610157665337,0.22387608,40160.0,40153.0,0.00020997]
[1610157666639,0.22387608,40160.0,40120.0,0.00866034]
[1610157667040,0.08755,40160.0,40129.0,0.13632608]
[1610157667538,0.08755,40160.0,40130.0,0.00020999]
[1610157668940,0.08755,40160.0,40139.0,0.13632608]
[1610157669543,0.08755,40160.0,40140.0,0.00020999]
[1610157670244,0.01521181,40169.0,40140.0,0.00020999]
[1610157670444,0.46722485,40168.0,40140.0,0.00020999]
[1610157670642,0.54613485,40168.0,40140.0,0.00020999]
[1610157671043,0.13632608,40141.0,40140.0,0.00020999]
[1610157671343,0.23140608,40141.0,40133.0,0.13632608]
[1610157671544,0.23140608,40141.0,40134.0,0.00021001]
[1610157673045,0.13632608,40135.0,40134.0,0.00021001]
[1610157673646,0.13632608,40135.0,40111.0,4.0286]
[1610157673950,0.13632608,40135.0,40112.0,0.00021005]
[1610157674548,0.13632608,40135.0,40112.0,0.00866676]
[1610157674946,0.13632608,40137.0,40136.0,0.13632608]
[1610157675647,0.13632608,40137.0,40136.0,0.00021005]
[1610157676048,0.13632608,40137.0,40116.0,3.9796]
[1610157676349,0.13632608,40137.0,40117.0,0.00021007]
[1610157676951,0.09508,40141.0,40122.0,0.13632608]
[1610157677151,0.2866,40154.0,40122.0,0.13632608]
[1610157677652,0.2866,40154.0,40123.0,0.00021007]
[1610157678053,1.5,40153.0,40123.0,0.00021007]
[1610157678353,1.62362,40153.0,40117.0,0.0002101]
[1610157678554,1.62362,40153.0,40124.0,0.0002101]
[1610157678754,1.62362,40153.0,40116.0,3.9796]
[1610157678755,1.63876341,40153.0,40116.0,3.9796]
[1610157679052,0.13632608,40117.0,40116.0,3.9796]
[1610157679252,0.23180608,40117.0,40102.0,0.13632608]
[1610157679453,0.23180608,40117.0,40116.0,0.00021295]
[1610157679652,0.23180608,40117.0,40102.0,0.13632608]
[1610157679653,0.23180608,40117.0,40103.0,0.00021295]
[1610157679853,0.23180608,40117.0,40102.0,0.13632608]
[1610157680253,0.23180608,40117.0,40104.0,0.00021297]
[1610157680454,0.23180608,40117.0,40103.0,0.00021297]
[1610157680657,0.23180608,40117.0,40105.0,0.00021297]
[1610157680955,0.23180608,40117.0,40104.0,0.00021294]
[1610157681159,0.23180608,40117.0,40100.0,3.0743]
[1610157681160,0.09548,40117.0,40116.0,0.13632608]
[1610157682054,0.09548,40117.0,40116.0,0.13653894]
[1610157684156,0.09548,40117.0,40116.0,0.13653895]
[1610157684357,0.13632608,40130.0,40116.0,0.13653895]
[1610157684959,0.13632608,40117.0,40116.0,0.13632608]
[1610157685159,0.25839608,40117.0,40116.0,0.13632608]
[1610157685559,0.25839608,40117.0,40116.0,0.13653894]
[1610157685961,0.25839608,40117.0,40116.0,0.13632608]
[1610157688063,0.25839608,40117.0,40100.0,3.0743]
[1610157688363,0.25839608,40117.0,40101.0,0.00021292]
[1610157688563,0.25839608,40117.0,40084.0,0.00949082]
[1610157688964,0.25839608,40117.0,40102.0,0.00021294]
[1610157689264,0.12207,40117.0,40110.0,0.13632608]
[1610157690365,3.5354,40142.0,40110.0,0.13632608]
[1610157690967,0.00030482,40141.0,40110.0,0.13632608]
[1610157691170,0.13632608,40111.0,40110.0,0.13632608]
[1610157691570,0.26038608,40111.0,40110.0,0.13632608]
[1610157695677,0.12406,40111.0,40110.0,0.70812608]
[1610157696483,0.12406,40111.0,40110.0,0.70833898]
[1610157696678,0.1183,40141.0,40110.0,0.70833898]
[1610157696882,0.2708,40146.0,40110.0,0.13653898]
[1610157697079,0.2708,40146.0,40131.0,0.13632608]
[1610157698883,0.07891,40168.0,40131.0,0.13632608]
[1610157699084,0.07891,40168.0,40147.0,0.13632608]
[1610157699383,0.2748,40167.0,40147.0,0.13632608]
[1610157699583,0.00030464,40166.0,40147.0,0.13632608]
[1610157699985,0.39742,40167.0,40147.0,0.13632608]
[1610157701083,0.39742,40167.0,40161.0,0.13632608]
[1610157701685,0.12262,40167.0,40161.0,0.60392608]
[1610157702092,0.12262,40167.0,40162.0,3.3046]
[1610157703188,0.12262,40167.0,40166.0,0.13632608]
[1610157704889,0.46473215,40198.0,40166.0,0.13632608]
[1610157705187,0.2803,40199.0,40186.0,0.13632608]
[1610157705989,0.2803,40199.0,40182.0,3.581]
[1610157706190,0.2803,40199.0,40134.0,0.08189]
[1610157706389,0.36105,40199.0,40144.0,3.1277]
[1610157706590,0.01544407,40198.0,40144.0,3.1277]
[1610157706992,0.01514023,40196.0,40144.0,3.1277]
[1610157707190,0.13632608,40159.0,40158.0,0.13632608]
[1610157707391,0.23834608,40159.0,40158.0,0.13632608]
[1610157708192,0.10202,40159.0,40158.0,0.13632608]
[1610157712393,0.10202,40159.0,40144.0,2.9175]
[1610157712394,0.13632608,40163.0,40144.0,2.9175]
[1610157713195,3.2391,40182.0,40153.0,0.13632608]
[1610157715197,0.13632608,40154.0,40153.0,0.13632608]
[1610157715397,0.23528608,40154.0,40153.0,0.13632608]
[1610157719401,0.23528608,40154.0,40144.0,2.9175]
[1610157720302,0.23528608,40154.0,40145.0,0.00021274]
[1610157721101,0.09896,40154.0,40146.0,0.13632608]
[1610157721300,0.17207604,40179.0,40146.0,0.13632608]
[1610157721501,0.17207604,40179.0,40147.0,0.00021274]
[1610157721702,0.01517868,40178.0,40147.0,0.00021274]
[1610157722105,0.11616868,40178.0,40147.0,0.00021274]
[1610157722307,0.11616868,40178.0,40144.0,2.9175]
[1610157722706,1.51518263,40177.0,40144.0,2.9175]
[1610157723106,0.13632608,40145.0,40144.0,2.9175]
[1610157723306,0.22512608,40145.0,40144.0,2.9175]
[1610157723708,0.22512608,40145.0,40144.0,2.91771278]
[1610157724207,0.22512608,40145.0,40144.0,0.00021278]
[1610157724609,0.22512608,40145.0,40140.0,0.13632608]
[1610157724610,0.22512608,40145.0,40141.0,0.00021278]
[1610157725108,0.22512608,40145.0,40144.0,0.00021278]
[1610157725309,0.22512608,40145.0,40142.0,0.00021278]
[1610157725512,0.22512608,40145.0,40144.0,0.00021278]
[1610157725711,0.22512608,40145.0,40143.0,0.00021278]
[1610157726011,0.22512608,40145.0,40144.0,0.00021278]
[1610157726611,0.22512608,40145.0,40141.0,0.00021278]
[1610157728414,0.22512608,40145.0,40142.0,0.00021278]
[1610157728615,0.21512608,40145.0,40142.0,0.00021278]
[1610157729018,0.21512608,40145.0,40141.0,0.00021278]
[1610157729317,0.21512608,40145.0,40143.0,0.00021278]
[1610157729617,0.21512608,40145.0,40142.0,0.00021278]
[1610157729819,0.21512608,40145.0,40144.0,0.00021278]
[1610157730023,0.21512608,40145.0,40143.0,0.00021278]
[1610157730320,0.21512608,40145.0,40144.0,0.00021278]
[1610157730721,0.21512608,40145.0,40141.0,0.00948244]
[1610157731122,0.21512608,40145.0,40144.0,0.00021278]
[1610157731321,0.21512608,40145.0,40142.0,0.00021278]
[1610157731520,0.21512608,40145.0,40144.0,0.00021278]
[1610157732921,0.21512608,40145.0,40143.0,0.00021276]
[1610157733122,0.21512608,40145.0,40144.0,0.00021276]
[1610157733421,0.21512608,40145.0,40141.0,0.00021276]
[1610157733622,0.21512608,40145.0,40144.0,0.00021276]
[1610157733920,0.21512608,40145.0,40142.0,0.00021276]
[1610157734121,0.21512608,40145.0,40140.0,0.13632608]
[1610157734122,0.21512608,40145.0,40144.0,0.00021276]
[1610157734422,0.21512608,40145.0,40143.0,0.00021278]
[1610157734822,0.21512608,40145.0,40144.0,0.00021278]
[1610157735422,0.21512608,40145.0,40141.0,0.00021278]
[1610157735723,0.21512608,40145.0,40142.0,0.00021278]
[1610157736226,0.21512608,40145.0,40141.0,0.00021278]
[1610157736524,0.21512608,40145.0,40143.0,0.00021278]
[1610157736824,0.21512608,40145.0,40140.0,0.13632608]
[1610157736825,0.21512608,40145.0,40142.0,0.00021278]
[1610157737025,0.21512608,40145.0,40144.0,0.00021278]
[1610157737327,0.21512608,40145.0,40143.0,0.00021278]
[1610157737526,0.21512608,40145.0,40144.0,0.00021278]
[1610157738325,0.21512608,40145.0,40141.0,0.00021278]
[1610157741731,0.21512608,40145.0,40138.0,0.00921721]
[1610157742531,0.21512608,40145.0,40144.0,3.1702]
[1610157742830,0.21512608,40145.0,40144.0,3.17941531]
[1610157743234,0.21512608,40145.0,40144.0,3.31574139]
[1610157744733,0.21512608,40145.0,40144.0,0.14554139]
[1610157745838,0.21512608,40145.0,40144.0,0.13653794]
[1610157746136,0.21512608,40145.0,40144.0,0.14554212]
[1610157751940,0.21512608,40145.0,40144.0,0.00921604]
[1610157752341,0.21512608,40145.0,40138.0,0.00921683]
[1610157752542,0.21512608,40145.0,40144.0,0.00021188]
[1610157752943,0.21512608,40145.0,40139.0,0.00921946]
[1610157753143,0.21512608,40145.0,40144.0,0.00021192]
[1610157753342,0.21512608,40145.0,40127.0,0.13632608]
[1610157753744,0.21512608,40145.0,40144.0,0.00021191]
[1610157753946,0.21512608,40145.0,40128.0,0.00921875]
[1610157754248,0.21512608,40145.0,40144.0,0.00021191]
[1610157754444,0.21512608,40145.0,40129.0,0.00021191]
[1610157754745,0.21512608,40145.0,40128.0,0.00921875]
[1610157754945,0.21512608,40145.0,40130.0,0.00021191]
[1610157755244,0.21512608,40145.0,40129.0,0.00021193]
[1610157755444,0.21512608,40145.0,40125.0,4.0005]
[1610157755445,0.13632608,40130.0,40126.0,0.0092207]
[1610157755644,0.22936608,40130.0,40126.0,0.0092207]
[1610157755944,0.22936608,40130.0,40129.0,0.00021193]
[1610157756146,0.22936608,40130.0,40127.0,0.00922131]
[1610157756345,0.22936608,40130.0,40128.0,3.386]
[1610157756546,0.22936608,40130.0,40128.0,3.39522153]
[1610157756747,0.22936608,40130.0,40129.0,0.00922147]
[1610157757248,0.22936608,40130.0,40129.0,0.00021195]
[1610157758852,0.22936608,40130.0,40109.0,0.0092229]
[1610157759252,4.35976608,40130.0,40129.0,0.00021197]
[1610157759452,4.35976608,40130.0,40110.0,0.00922415]
[1610157759653,4.35976608,40130.0,40129.0,0.00021197]
[1610157760054,4.35976608,40130.0,40111.0,0.00922396]
[1610157760254,4.35976608,40130.0,40129.0,0.00021197]
[1610157760554,4.35976608,40130.0,40105.0,0.00922465]
[1610157760754,4.35976608,40130.0,40129.0,0.00021199]
[1610157761155,0.22936608,40130.0,40106.0,0.00922479]
[1610157761359,0.09304,40130.0,40117.0,0.13632608]
[1610157761556,0.0888,40145.0,40117.0,0.13632608]
[1610157761756,0.01525037,40147.0,40118.0,0.00021199]
[1610157761958,0.01525014,40149.0,40118.0,0.00021199]
[1610157762362,0.01525014,40149.0,40108.0,0.00922311]
[1610157762657,0.11897,40149.0,40119.0,0.00021197]
[1610157762858,0.11897,40149.0,40116.0,3.6603]
[1610157763061,0.11897,40149.0,40109.0,0.00922254]
[1610157763258,0.11897,40149.0,40108.0,2.9049]
[1610157763259,0.11897,40149.0,40120.0,0.00021197]
[1610157763459,0.13632608,40121.0,40113.0,0.13632608]
[1610157763661,0.25860608,40121.0,40113.0,0.13632608]
[1610157763860,0.25860608,40121.0,40114.0,0.00901114]
[1610157764059,0.25860608,40121.0,40114.0,0.00922311]
[1610157765460,0.13632608,40115.0,40114.0,0.00922311]
[1610157766662,0.13632608,40115.0,40107.0,0.00924774]
[1610157766862,0.13632608,40115.0,40114.0,0.00021207]
[1610157767162,0.13632608,40115.0,40107.0,0.00903567]
[1610157767163,0.13632608,40115.0,40108.0,0.00021207]
[1610157767362,0.12228,40121.0,40114.0,0.00021207]
[1610157767662,0.12228,40121.0,40108.0,0.00924774]
[1610157767865,0.12228,40121.0,40115.0,0.00021207]
[1610157768164,0.12228,40121.0,40109.0,0.00021207]